bitfinex/quotes_ETHUSD_20251006
["timestamp","ask_amount","ask_price","bid_price","bid_amount"]
[1759768007763,17.77645113,4664.4,4664.3,2.423]
[1759768008058,15.99,4664.4,4664.3,2.423]
[1759768008355,15.99,4664.4,4664.3,4.56694442]
[1759768008560,17.22,4664.4,4664.3,5.2717]
[1759768008863,17.22,4664.4,4664.3,4.54494442]
[1759768009051,17.22,4664.4,4664.3,4.823]
[1759768009960,18.45,4664.4,4664.3,4.823]
[1759768010160,18.45,4664.4,4664.3,7.07414442]
[1759768010327,18.45,4664.4,4664.3,14.56685442]
[1759768010523,18.45,4664.4,4664.3,18.78175442]
[1759768010859,18.45,4664.4,4664.3,17.40209442]
[1759768011049,18.45,4664.4,4664.3,32.48608442]
[1759768011278,19.68,4664.4,4664.3,36.24187742]
[1759768011451,19.68,4664.4,4664.3,32.83139742]
[1759768011758,19.68,4664.4,4664.3,27.00328842]
[1759768012122,19.68,4664.4,4664.3,30.30869342]
[1759768012749,20.91,4664.4,4664.3,30.75739342]
[1759768013126,20.91,4664.4,4664.3,37.52284442]
[1759768014226,22.14,4664.4,4664.3,37.52284442]
[1759768014729,22.14,4664.4,4664.3,36.78763642]
[1759768014928,22.14,4664.4,4664.3,30.26967242]
[1759768015339,22.14,4664.4,4664.3,29.83584042]
[1759768015539,22.14,4664.4,4664.3,27.19884042]
[1759768015755,23.37,4664.4,4664.3,27.19884042]
[1759768016158,23.37,4664.4,4664.3,28.88618142]
[1759768017068,24.6,4664.4,4664.3,28.99942642]
[1759768017788,24.6,4664.4,4664.3,28.68738042]
[1759768018156,1.23,4665.7,4664.4,2.4]
[1759768018355,1.23,4665.7,4665.6,2.14334705]
[1759768018563,1.23,4665.7,4665.6,11.36002605]
[1759768018796,1.23,4665.7,4665.6,7.149775]
[1759768018977,1.23,4665.7,4665.6,9.29312205]
[1759768019159,1.23,4665.7,4665.6,16.980153]
[1759768019473,1.23,4665.7,4665.6,18.71650005]
[1759768019774,2.46,4665.7,4665.6,18.71650005]
[1759768020155,2.46,4665.7,4665.6,16.573153]
[1759768020341,2.9048,4665.7,4665.6,4.823]
[1759768020742,2.9068,4665.7,4665.6,4.823]
[1759768021048,2.9068,4665.7,4665.6,2.4]
[1759768021245,2.9068,4665.7,4665.6,4.823]
[1759768021246,4.1368,4665.7,4665.6,4.823]
[1759768021582,4.244,4665.7,4665.6,4.823]
[1759768022717,4.922,4665.7,4665.6,23.58029905]
[1759768022926,4.922,4665.7,4665.6,19.35519605]
[1759768023092,4.922,4665.7,4665.6,9.361633]
[1759768023294,4.922,4665.7,4665.6,7.657199]
[1759768023482,4.922,4665.7,4665.6,5.234199]
[1759768023682,4.922,4665.7,4665.6,13.17236705]
[1759768024225,4.922,4665.7,4665.6,10.77165305]
[1759768024385,6.152,4665.7,4665.6,10.77165305]
[1759768024823,6.152,4665.7,4665.6,18.55834705]
[1759768024997,6.152,4665.7,4665.6,20.61871205]
[1759768025198,6.152,4665.7,4665.6,17.14629305]
[1759768025711,6.152,4665.7,4665.6,15.19289605]
[1759768025913,7.382,4665.7,4665.6,15.19289605]
[1759768026912,7.382,4665.7,4665.6,6.96534705]
[1759768027082,7.382,4665.7,4665.6,16.97279605]
[1759768027285,8.612,4665.7,4665.6,16.97279605]
[1759768027489,8.612,4665.7,4665.6,16.72873205]
[1759768027880,8.612,4665.7,4665.6,18.79318405]
[1759768028796,9.842,4665.7,4665.6,20.65569205]
[1759768029179,9.842,4665.7,4665.6,21.10779205]
[1759768029386,9.842,4665.7,4665.6,21.39259655]
[1759768029626,9.842,4665.7,4665.6,22.13339655]
[1759768029787,9.842,4665.7,4665.6,40.58305155]
[1759768030186,11.072,4665.7,4665.6,40.58305155]
[1759768030695,1e-08,4665.7,4665.6,40.58305155]
[1759768030889,1e-08,4665.7,4665.6,40.29824705]
[1759768031090,1e-08,4665.7,4665.6,40.58305155]
[1759768031729,1.23000001,4665.7,4665.6,42.80905155]
[1759768032929,1.23000001,4665.7,4665.6,37.07535155]
[1759768033089,2.46000001,4665.7,4665.6,41.72335155]
[1759768033290,2.46000001,4665.7,4665.6,39.22777655]
[1759768034034,2.46000001,4665.7,4665.6,39.49635155]
[1759768034494,3.69000001,4665.7,4665.6,39.49635155]
[1759768035301,3.69000001,4665.7,4665.6,39.94845155]
[1759768035934,4.92000001,4665.7,4665.6,39.49635155]
[1759768036930,4.92000001,4665.7,4665.6,9.49635155]
[1759768037346,6.15000001,4665.7,4665.6,39.49635155]
[1759768038846,7.38200001,4665.7,4665.6,39.49635155]
[1759768039056,7.38200001,4665.7,4665.6,9.49635155]
[1759768039283,7.38200001,4665.7,4665.6,7.07535155]
[1759768039559,7.38200001,4665.7,4665.6,34.18259555]
[1759768039729,7.38200001,4665.7,4665.6,37.35635155]
[1759768040060,7.38200001,4665.7,4665.6,4.93535155]
[1759768040261,9.05560001,4665.7,4665.6,7.35635155]
[1759768040417,9.05560001,4665.7,4665.6,15.07080155]
[1759768040617,8.61200001,4665.7,4665.6,15.07080155]
[1759768041040,8.61200001,4665.7,4665.6,16.60436738]
[1759768041243,8.61200001,4665.7,4665.6,6.46891738]
[1759768041548,8.61200001,4665.7,4665.6,30.18806538]
[1759768041757,9.84200001,4665.7,4665.6,26.34201138]
[1759768041916,9.84200001,4665.7,4665.6,23.92101138]
[1759768042116,10.28560001,4665.7,4665.6,26.87972338]
[1759768042342,10.28560001,4665.7,4665.6,24.45872338]
[1759768042560,10.28560001,4665.7,4665.6,21.38858538]
[1759768042915,11.51560001,4665.7,4665.6,21.38858538]
[1759768043114,11.51560001,4665.7,4665.6,22.19617238]
[1759768043364,11.51560001,4665.7,4665.6,20.66260655]
[1759768043514,11.51560001,4665.7,4665.6,18.24160655]
[1759768043720,11.51560001,4665.7,4665.6,18.87785705]
[1759768044120,11.51560001,4665.7,4665.6,19.52017005]
[1759768044320,12.74560001,4665.7,4665.6,19.52017005]
[1759768045031,12.74560001,4665.7,4665.6,19.18531907]
[1759768045253,12.74560001,4665.7,4665.6,20.22510607]
[1759768045772,12.74560001,4665.7,4665.6,8.60714707]
[1759768045947,13.97560001,4665.7,4665.6,8.60714707]
[1759768046350,13.53200001,4665.7,4665.6,12.48662407]
[1759768046550,13.97560001,4665.7,4665.6,9.71324805]
[1759768046899,13.53200001,4665.7,4665.6,11.21923005]
[1759768047115,13.53200001,4665.7,4665.6,12.18530883]
[1759768047254,11.87171729,4665.7,4665.6,12.18530883]
[1759768047606,11.87171729,4665.7,4665.6,14.10675449]
[1759768047767,11.87171729,4665.7,4665.6,9.95907149]
[1759768048103,11.87171729,4665.7,4665.6,39.95907149]
[1759768048652,13.10171729,4665.7,4665.6,39.95907149]
[1759768049185,13.10171729,4665.7,4665.6,38.03762583]
[1759768049681,13.10171729,4665.7,4665.6,39.72999226]
[1759768049886,14.33171729,4665.7,4665.6,25.44669026]
[1759768050109,14.33171729,4665.7,4665.6,27.86769026]
[1759768050859,14.33171729,4665.7,4665.6,30.61797026]
[1759768051054,14.33171729,4665.7,4665.6,9.98916405]
[1759768051254,16.00531729,4665.7,4665.6,9.98916405]
[1759768051773,16.00531729,4665.7,4665.6,10.27396855]
[1759768052088,15.56171729,4665.7,4665.6,14.26046955]
[1759768052451,15.56171729,4665.7,4665.6,9.45297155]
[1759768052676,17.23531729,4665.7,4665.6,9.45297155]
[1759768052878,17.23531729,4665.7,4665.6,11.08061755]
[1759768053923,17.23531729,4665.7,4665.6,13.07862955]
[1759768054214,18.46531729,4665.7,4665.6,13.07862955]
[1759768054709,18.02171729,4665.7,4665.6,13.07862955]
[1759768054910,18.47291729,4665.7,4665.6,7.35635155]
[1759768055116,18.47291729,4665.7,4665.6,4.93535155]
[1759768055316,18.47291729,4665.7,4665.6,13.20539455]
[1759768055511,19.70291729,4665.7,4665.6,13.20539455]
[1759768056014,19.70291729,4665.7,4665.6,13.20639455]
[1759768056194,19.70291729,4665.7,4665.6,13.04779655]
[1759768057120,19.70291729,4665.7,4665.6,15.57639155]
[1759768057320,20.93291729,4665.7,4665.6,15.57639155]
[1759768057888,20.48171729,4665.7,4665.6,15.34777155]
[1759768058215,20.90971729,4665.7,4665.6,14.14250855]
[1759768058417,20.90971729,4665.7,4665.6,9.45803505]
[1759768058622,22.13971729,4665.7,4665.6,9.45803505]
[1759768059199,22.13971729,4665.7,4665.6,11.53046505]
[1759768059920,23.36971729,4665.7,4665.6,9.11046505]
[1759768060245,23.36971729,4665.7,4665.6,9.45337805]
[1759768060749,23.36971729,4665.7,4665.6,0.001]
[1759768060949,27.64983902,4665.7,4665.6,0.001]
[1759768061159,27.64983902,4665.7,4665.6,2.422]
[1759768061524,28.87983902,4665.7,4665.6,0.001]
[1759768061858,28.87983902,4665.7,4665.6,2.422]
[1759768062924,30.10983902,4665.7,4665.6,2.422]
[1759768063124,30.10983902,4665.7,4665.6,0.001]
[1759768063325,2.77713082,4665.2,4665.1,0.001]
[1759768063529,3.26919021,4665.2,4665.1,0.001]
[1759768063743,3.69719021,4665.2,4665.1,1.135]
[1759768064256,4.92719021,4665.2,4665.1,1.135]
[1759768064823,4.92719021,4665.2,4665.1,0.001]
[1759768065548,6.14471326,4665.2,4665.1,0.001]
[1759768066522,6.14471326,4665.2,4665.1,2.422]
[1759768066954,7.37471326,4665.2,4665.1,2.422]
[1759768068168,8.60471326,4665.2,4665.1,2.422]
[1759768069664,9.83471326,4665.2,4665.1,0.001]
[1759768069865,9.83471326,4665.2,4665.1,2.422]
[1759768070147,9.83471326,4665.2,4665.1,0.001]
[1759768070779,9.94191326,4665.2,4665.1,0.001]
[1759768070943,11.17191326,4665.2,4665.1,0.001]
[1759768072481,8.7172,4665.2,4665.1,0.001]
[1759768073075,10.86073082,4665.2,4665.1,2.422]
[1759768073276,11.28873082,4665.2,4665.1,2.422]
[1759768073859,12.51873082,4665.2,4665.1,0.001]
[1759768074058,12.51873082,4665.2,4665.1,0.621]
[1759768074300,13.98494907,4665.2,4665.1,0.621]
[1759768074795,14.61854907,4665.2,4665.1,0.001]
[1759768075329,15.84854907,4665.2,4665.1,0.001]
[1759768076601,17.07854907,4665.2,4665.1,0.001]
[1759768078104,18.30854907,4665.2,4665.1,0.001]
[1759768079114,22.87834907,4665.2,4665.1,0.001]
[1759768079298,24.25334907,4665.2,4665.1,0.001]
[1759768079614,0.6336,4664.7,4664.6,0.001]
[1759768079834,21.55843587,4664.7,4664.6,0.001]
[1759768079990,22.1856541,4664.7,4664.6,0.001]
[1759768080669,23.4156541,4664.7,4664.6,0.001]
[1759768082110,24.6456541,4664.7,4664.6,0.001]
[1759768082508,24.73145409,4664.7,4664.6,0.001]
[1759768083425,25.96145409,4664.7,4664.6,0.001]
[1759768084773,27.19145409,4664.7,4664.6,0.001]
[1759768086173,28.42145409,4664.7,4664.1,0.001]
[1759768086374,3.0336,4664.3,4664.1,1e-08]
[1759768086605,3.25481823,4664.2,4664.1,1e-08]
[1759768086917,5.83840862,4664.2,4664.1,1e-08]
[1759768087087,2.97680862,4664.2,4664.1,1e-08]
[1759768087610,4.64640862,4664.2,4664.1,1e-08]
[1759768087770,5.12804162,4664.2,4664.1,1e-08]
[1759768089186,6.46524162,4664.2,4664.1,1e-08]
[1759768089389,5.83164162,4664.2,4664.1,1e-08]
[1759768089794,4.71119039,4664.2,4664.1,1e-08]
[1759768090113,5.34479039,4664.2,4664.1,1e-08]
[1759768090477,6.57479039,4664.2,4664.1,1e-08]
[1759768090883,6.57479039,4664.2,4664.1,0.46600001]
[1759768091087,6.77438788,4664.2,4664.1,1e-08]
[1759768091916,8.00438788,4664.2,4664.1,1e-08]
[1759768093320,9.23438788,4664.2,4664.1,1e-08]
[1759768094017,10.82252675,4664.2,4664.1,1e-08]
[1759768094581,16.55562158,4664.2,4664.1,1e-08]
[1759768094819,16.99522158,4664.2,4664.1,1e-08]
[1759768095234,19.39522158,4664.2,4664.1,1e-08]
[1759768095906,18.22522158,4664.2,4664.1,1e-08]
[1759768097624,19.45522158,4664.2,4664.1,1e-08]
[1759768099001,7.28082313,4663.9,4663.8,0.001]
[1759768099206,12.14644124,4663.9,4663.8,0.001]
[1759768099545,12.58604124,4663.9,4663.8,0.001]
[1759768100107,12.67185595,4663.9,4663.8,0.001]
[1759768100308,13.90185595,4663.9,4663.8,0.001]
[1759768100537,18.40495078,4663.9,4663.8,0.001]
[1759768101853,19.63495078,4663.9,4663.8,0.001]
[1759768103051,7.76716112,4663.9,4663.8,0.001]
[1759768103261,15.20384124,4663.9,4663.8,0.001]
[1759768103757,12.78084124,4663.9,4663.8,0.001]
[1759768103940,13.41444124,4663.9,4663.8,0.001]
[1759768104660,14.64444124,4663.9,4663.8,0.001]
[1759768105152,14.01084124,4663.9,4663.8,0.001]
[1759768105387,11.76682062,4663.9,4663.8,0.001]
[1759768105553,5.11959749,4663.9,4663.8,0.467]
[1759768105736,5.11959749,4663.9,4663.8,0.001]
[1759768105737,7.26372579,4663.9,4663.8,0.001]
[1759768106052,8.49372579,4663.9,4663.8,0.001]
[1759768106934,9.12732579,4663.9,4663.8,0.001]
[1759768107138,11.26414641,4663.9,4663.8,0.001]
[1759768107463,12.49414641,4663.9,4663.8,0.001]
[1759768107764,12.49468298,4663.9,4663.8,0.001]
[1759768107949,12.93428298,4663.9,4663.8,0.001]
[1759768108843,13.72468298,4663.9,4663.8,0.001]
[1759768109131,0.6336,4663.8,4663.3,0.001]
[1759768109332,7.28114499,4663.2,4663.1,0.011]
[1759768109579,7.48127905,4663.2,4663.1,0.011]
[1759768110389,8.71127905,4663.2,4663.1,0.011]
[1759768110563,6.0303199,4663.2,4663.1,0.011]
[1759768111346,8.71127905,4663.2,4663.1,0.011]
[1759768111875,9.94127905,4663.2,4663.1,0.011]
[1759768113072,11.17127905,4663.2,4663.1,0.011]
[1759768113289,11.60227905,4663.2,4663.1,0.011]
[1759768113944,14.02527905,4663.2,4663.1,0.011]
[1759768114148,16.09255473,4663.2,4663.1,0.011]
[1759768114697,17.32255473,4663.2,4663.1,1e-08]
[1759768114861,17.86906467,4663.2,4663.1,1e-08]
[1759768115061,17.40838399,4663.2,4663.1,1e-08]
[1759768115266,17.51558399,4663.2,4663.1,1e-08]
[1759768115891,2.4,4663.1,4662.1,0.011]
[1759768116097,11.89189978,4662.2,4662.1,0.011]
[1759768116407,7.58893901,4662.2,4662.1,0.011]
[1759768117517,8.81893901,4662.2,4662.1,0.011]
[1759768117920,4.31584418,4662.2,4662.1,0.011]
[1759768118222,9.70730776,4662.2,4662.1,0.011]
[1759768118905,10.93730776,4662.2,4662.1,0.011]
[1759768119292,10.7371737,4662.2,4662.1,0.011]
[1759768119492,13.1601737,4662.2,4662.1,0.011]
[1759768119709,13.35964689,4662.2,4662.1,0.011]
[1759768120285,19.09274172,4662.2,4662.1,0.011]
[1759768120496,19.54924172,4662.2,4662.1,0.011]
[1759768121104,2.77874018,4661.7,4661.6,0.001]
[1759768121303,2.77874018,4661.7,4661.1,0.011]
[1759768121304,7.28206512,4661.2,4661.1,0.011]
[1759768121492,7.38926512,4661.2,4661.1,0.011]
[1759768123027,4.11617029,4661.2,4661.1,0.011]
[1759768123223,9.62465177,4661.2,4661.1,0.011]
[1759768123428,10.93674735,4661.2,4661.1,0.011]
[1759768123634,4.11617029,4661.2,4661.1,0.011]
[1759768123803,4.11617029,4661.2,4661.1,0.4783]
[1759768124208,5.34617029,4661.2,4661.1,0.011]
[1759768124595,5.34617029,4661.2,4661.1,0.4783]
[1759768124802,5.34617029,4661.2,4661.1,0.011]
[1759768125024,6.64616392,4661.2,4661.1,0.011]
[1759768125550,12.6111454,4661.2,4661.1,0.011]
[1759768125840,13.8411454,4661.2,4661.1,0.011]
[1759768125999,2.7793846,4660.3,4660.2,0.50488018]
[1759768126200,8.67300454,4660.3,4660.2,0.50488018]
[1759768126624,11.09600454,4660.3,4660.2,0.50488018]
[1759768126839,8.67300454,4660.3,4660.2,0.50488018]
[1759768127024,3.62102306,4660.3,4660.2,0.50488018]
[1759768127344,4.85102306,4660.3,4660.2,0.50488018]
[1759768128803,8.04852306,4660.3,4660.2,0.50488018]
[1759768129246,8.50502306,4660.3,4660.2,0.50488018]
[1759768129617,5.62452306,4660.3,4660.2,0.50488018]
[1759768130243,7.31102306,4660.3,4660.2,0.50488018]
[1759768130413,6.85452306,4660.3,4660.2,0.50488018]
[1759768131755,8.08452306,4660.3,4660.2,0.50488018]
[1759768133028,9.31452306,4660.3,4660.2,0.50488018]
[1759768134448,10.54452306,4660.3,4660.2,0.50488018]
[1759768135844,11.14092306,4660.3,4660.2,0.50488018]
[1759768136269,11.77452306,4660.3,4660.2,0.50488018]
[1759768136834,11.14092306,4660.3,4660.2,0.50488018]
[1759768137170,11.77452306,4660.3,4660.2,0.50488018]
[1759768137374,13.00452306,4660.3,4660.2,0.50488018]
[1759768138173,9.9472,4660.3,4660.2,0.50488018]
[1759768138358,9.9472,4660.3,4660.2,0.97218018]
[1759768138559,9.9472,4660.3,4660.2,0.50488018]
[1759768138560,13.3229846,4660.3,4660.2,0.50488018]
[1759768138872,13.9565846,4660.3,4660.2,0.50488018]
[1759768140082,15.1865846,4660.3,4660.2,0.50488018]
[1759768141368,16.91981345,4660.3,4660.2,0.50488018]
[1759768141566,18.60631345,4660.3,4660.2,0.50488018]
[1759768141785,18.14981345,4660.3,4660.2,0.50488018]
[1759768142843,19.37981345,4660.3,4660.2,0.50488018]
[1759768143178,19.85001345,4660.3,4660.2,0.50488018]
[1759768143350,19.37981345,4660.3,4660.2,0.50488018]
[1759768144477,20.60981345,4660.3,4660.2,0.50488018]
[1759768144977,18.1357846,4660.3,4660.2,0.50488018]
[1759768145183,18.7693846,4660.3,4660.2,0.50488018]
[1759768145938,19.9993846,4660.3,4660.2,0.50488018]
[1759768147165,17.22,4660.3,4660.2,0.50488018]
[1759768147370,18.45,4660.3,4660.2,0.94848018]
[1759768148020,18.45,4660.3,4660.2,14.53985683]
[1759768148021,17.947,4660.3,4660.2,14.53985683]
[1759768148168,17.947,4660.3,4660.2,12.551207]
[1759768148369,17.947,4660.3,4660.2,11.264719]
[1759768148668,19.177,4660.3,4660.2,11.264719]
[1759768149066,19.177,4660.3,4660.2,24.6658]
[1759768149305,0.002,4661.1,4661.0,2.14546234]
[1759768149478,0.002,4661.1,4661.0,14.01909134]
[1759768149681,0.002,4661.1,4661.0,14.63154134]
[1759768150004,0.002,4661.1,4661.0,17.10548934]
[1759768150307,0.002,4661.1,4661.0,16.03118434]
[1759768151016,0.002,4661.1,4661.0,28.51076934]
[1759768151185,1.232,4661.1,4661.0,35.58021184]
[1759768152215,3.69,4661.2,4661.1,4.82814581]
[1759768152416,3.69,4661.2,4661.1,34.82814581]
[1759768152706,4.92,4661.2,4661.1,34.82814581]
[1759768153572,4.92,4661.2,4661.1,29.46269081]
[1759768153771,4.92,4661.2,4661.1,19.29462931]
[1759768154069,6.15,4661.2,4661.1,27.19622831]
[1759768154567,6.15,4661.2,4661.1,25.34115431]
[1759768154773,6.15,4661.2,4661.1,23.02435431]
[1759768154999,6.15,4661.2,4661.1,20.96743531]
[1759768155166,6.15,4661.2,4661.1,19.49408731]
[1759768155370,7.38,4661.2,4661.1,21.91808731]
[1759768156105,7.38,4661.2,4661.1,35.24399931]
[1759768156473,7.38,4661.2,4661.1,34.33361831]
[1759768156672,8.61,4661.2,4661.1,34.33361831]
[1759768157010,8.61,4661.2,4661.1,34.61634781]
[1759768157168,8.61,4661.2,4661.1,36.48400781]
[1759768157717,8.61,4661.2,4661.1,27.48112481]
[1759768157869,8.61,4661.2,4661.1,29.90512481]
[1759768158093,9.84,4661.2,4661.1,37.35934581]
[1759768158298,9.84,4661.2,4661.1,36.58422981]
[1759768158528,9.84,4661.2,4661.1,34.59373381]
[1759768158799,9.84,4661.2,4661.1,31.00054681]
[1759768159115,9.84,4661.2,4661.1,32.51126081]
[1759768159612,11.07,4661.2,4661.1,32.51026081]
[1759768159807,11.07,4661.2,4661.1,21.28493331]
[1759768160037,11.07,4661.2,4661.1,23.70793331]
[1759768160333,11.07,4661.2,4660.4,4.37473856]
[1759768160334,11.5402,4661.2,4660.2,0.50488018]
[1759768160542,1.15402,4661.1,4660.3,13.812237]
[1759768160834,0.4702,4661.0,4660.4,11.405568]
[1759768161035,0.4702,4661.0,4660.5,2.4]
[1759768161204,0.4702,4660.9,4660.7,2.4]
[1759768161541,12.302,4661.2,4660.9,2.4]
[1759768161744,12.302,4661.2,4661.0,2.423]
[1759768162140,12.302,4661.2,4661.1,2.14541631]
[1759768162359,13.532,4661.2,4661.1,18.62151231]
[1759768162645,13.532,4661.2,4661.1,18.90424181]
[1759768163441,13.532,4661.2,4661.1,34.82814581]
[1759768163618,14.762,4661.2,4661.1,34.82814581]
[1759768164004,14.762,4661.2,4661.1,30.52289681]
[1759768164205,14.762,4661.2,4661.1,28.90311531]
[1759768164538,14.762,4661.2,4661.1,35.04240531]
[1759768164742,14.762,4661.2,4661.1,31.21336231]
[1759768164944,15.992,4661.2,4661.1,31.21336231]
[1759768165247,15.992,4661.2,4661.1,21.05373831]
[1759768165405,15.992,4661.2,4661.1,23.55298331]
[1759768165834,15.992,4661.2,4661.1,23.27638731]
[1759768166259,17.222,4661.2,4661.1,19.05669031]
[1759768166584,17.222,4661.2,4661.1,21.47972531]
[1759768167457,17.222,4661.2,4661.1,6.96841631]
[1759768167660,18.452,4661.2,4661.1,29.72416731]
[1759768167833,18.452,4661.2,4661.1,30.66223014]
[1759768168583,18.452,4661.2,4661.1,31.74915314]
[1759768169168,19.682,4661.2,4661.1,31.74915314]
[1759768169389,19.682,4661.2,4661.1,34.91683714]
[1759768169568,19.682,4661.2,4661.1,20.69721731]
[1759768170472,19.682,4661.2,4661.1,18.82366114]
[1759768170675,20.912,4661.2,4661.1,20.95059831]
[1759768171174,17.65161699,4661.2,4661.1,21.24666114]
[1759768171477,17.65161699,4661.2,4661.1,34.83292514]
[1759768171835,17.65161699,4661.2,4661.1,29.47067714]
[1759768172036,18.88161699,4661.2,4661.1,29.47067714]
[1759768172471,18.88161699,4661.2,4661.1,23.10173814]
[1759768172769,18.88161699,4661.2,4661.1,18.08323931]
[1759768172976,18.88161699,4661.2,4661.1,20.50623931]
[1759768173518,20.11161699,4661.2,4661.1,23.83231931]
[1759768173875,20.11161699,4661.2,4661.1,21.79452131]
[1759768174304,20.11161699,4661.2,4661.1,19.37152131]
[1759768174582,20.11161699,4661.2,4661.1,23.37523331]
[1759768174812,21.34161699,4661.2,4661.1,23.37523331]
[1759768175114,21.34161699,4661.2,4661.1,20.95223331]
[1759768175317,21.34161699,4661.2,4661.1,23.37523331]
[1759768175480,21.34161699,4661.2,4661.1,24.53714531]
[1759768176114,21.34161699,4661.2,4661.1,6.97327731]
[1759768176429,23.03141699,4661.2,4660.5,1.53919166]
[1759768176578,0.4598,4661.1,4660.6,4.432112]
[1759768176938,0.567,4661.0,4660.9,4.54550837]
[1759768177116,0.1072,4661.0,4660.9,11.55395237]
[1759768177419,22.57161699,4661.2,4661.0,10.71956634]
[1759768177587,22.57161699,4661.2,4661.1,7.588554]
[1759768177787,22.57161699,4661.2,4661.1,9.86642031]
[1759768178215,23.03141699,4661.2,4661.1,9.86642031]
[1759768178579,23.03141699,4661.2,4661.1,24.60128331]
[1759768178780,23.03141699,4661.2,4661.1,27.02428331]
[1759768178979,24.26141699,4661.2,4661.1,27.02428331]
[1759768179181,23.80161699,4661.2,4661.1,24.60128331]
[1759768179383,24.26141699,4661.2,4661.1,25.48016531]
[1759768179592,23.80161699,4661.2,4661.1,28.11064331]
[1759768180282,25.03161699,4661.2,4661.1,28.11064331]
[1759768180596,25.03161699,4661.2,4661.1,30.96750231]
[1759768181632,26.26161699,4661.2,4661.1,32.47004631]
[1759768182642,26.72141699,4661.2,4661.1,19.29354431]
[1759768182843,26.26161699,4661.2,4661.1,19.29354431]
[1759768183157,27.49161699,4661.2,4661.1,19.29354431]
[1759768183609,27.49161699,4661.2,4661.1,4.54541631]
[1759768183809,27.49161699,4661.2,4661.1,34.81109131]
[1759768184354,27.95141699,4661.2,4661.1,21.73054931]
[1759768184647,28.72161699,4661.2,4661.1,21.73054931]
[1759768184861,29.18141699,4661.2,4661.1,20.39154931]
[1759768185152,29.18141699,4661.2,4661.1,16.51654431]
[1759768185308,29.18141699,4661.2,4661.1,18.93954431]
[1759768185647,28.72161699,4661.2,4661.1,18.93954431]
[1759768185856,30.41141699,4661.2,4661.1,12.978015]
[1759768186012,30.51861699,4661.2,4661.1,4.823]
[1759768186212,32.65543761,4661.2,4661.1,4.823]
[1759768186853,30.51861699,4661.2,4661.1,4.823]
[1759768187456,31.74861699,4661.2,4661.1,4.823]
[1759768188648,31.74861699,4661.2,4661.1,6.96841631]
[1759768188941,32.97861699,4661.2,4661.1,6.96841631]
[1759768189149,32.97861699,4661.2,4660.8,0.001]
[1759768189313,2.59662062,4661.1,4660.9,2.423]
[1759768189508,0.567,4661.0,4660.9,2.423]
[1759768190112,1.797,4661.0,4660.9,2.423]
[1759768190318,1.797,4661.0,4660.8,0.001]
[1759768190543,3.93382062,4661.0,4660.9,2.423]
[1759768191624,5.16382062,4661.0,4660.9,2.423]
[1759768192647,5.16382062,4661.0,4660.8,0.001]
[1759768192851,4.70402062,4661.0,4660.9,2.423]
[1759768193015,5.93402062,4661.0,4660.9,2.423]
[1759768193550,6.39382062,4661.0,4660.9,2.423]
[1759768193854,6.39382062,4661.0,4660.8,0.001]
[1759768194051,6.39382062,4661.0,4660.9,2.423]
[1759768194415,9.76928296,4661.0,4660.9,2.423]
[1759768195019,2.14550837,4660.9,4660.8,0.001]
[1759768195239,4.28232899,4660.9,4660.8,2.424]
[1759768195443,4.74212899,4660.9,4660.8,0.001]
[1759768195612,4.74212899,4660.9,4660.8,2.424]
[1759768195840,6.60572899,4660.9,4660.8,2.424]
[1759768197154,4.70402062,4660.9,4660.8,2.424]
[1759768197353,3.027,4660.9,4660.8,2.424]
[1759768198452,5.17250837,4660.9,4660.8,2.424]
[1759768198646,6.40250837,4660.9,4660.8,0.001]
[1759768198873,6.40250837,4660.9,4660.8,2.424]
[1759768198874,4.257,4660.9,4660.8,2.424]
[1759768199385,3.7972,4660.9,4660.8,2.424]
[1759768199741,4.257,4660.9,4660.8,2.424]
[1759768200144,7.63250837,4660.9,4660.8,0.001]
[1759768200342,10.40292899,4660.9,4660.8,0.001]
[1759768200645,10.40292899,4660.9,4660.8,1.839]
[1759768200842,10.40292899,4660.9,4660.8,0.001]
[1759768201042,10.40292899,4660.9,4660.8,2.424]
[1759768201252,10.40292899,4660.9,4660.8,0.001]
[1759768201459,11.63292899,4660.9,4660.8,2.424]
[1759768201657,11.63292899,4660.9,4660.8,0.001]
[1759768202675,11.63292899,4660.9,4660.7,2.324]
[1759768202676,2.14555441,4660.8,4660.7,2.324]
[1759768202874,5.37577503,4660.8,4660.7,2.324]
[1759768203646,2.14569252,4660.5,4660.4,0.001]
[1759768203976,2.25289252,4660.5,4660.4,2.424]
[1759768204177,1.3372,4660.5,4660.4,2.424]
[1759768205385,1.3372,4660.5,4660.4,4.56973856]
[1759768205564,2.46,4660.5,4660.4,4.56973856]
[1759768205763,2.46,4660.5,4660.4,7.26580139]
[1759768206072,2.46,4660.5,4660.4,16.19502739]
[1759768206274,2.46,4660.5,4660.4,8.80348946]
[1759768206449,2.46,4660.5,4660.4,2.69706283]
[1759768206658,2.46,4660.5,4660.4,2.425]
[1759768207013,3.69,4660.5,4660.4,2.425]
[1759768207150,3.69,4660.5,4660.4,0.001]
[1759768207487,4.1514,4660.5,4660.4,2.425]
[1759768207891,3.69,4660.5,4660.4,2.425]
[1759768208088,4.1514,4660.5,4660.4,2.425]
[1759768208581,5.79654,4660.5,4660.4,2.425]
[1759768208784,4.92,4660.5,4660.4,2.14673856]
[1759768208959,4.92,4660.5,4660.4,4.57073856]
[1759768209160,4.92,4660.5,4660.4,17.31927956]
[1759768209365,4.92,4660.5,4660.4,19.71927956]
[1759768209662,4.92,4660.5,4660.4,20.01534239]
[1759768209999,7.38,4660.9,4660.8,2.14555441]
[1759768210298,7.38,4660.9,4660.8,29.32355442]
[1759768210588,7.38,4660.9,4660.8,31.68603042]
[1759768210832,7.38,4660.9,4660.8,30.14922324]
[1759768210987,7.38,4660.9,4660.8,26.73492624]
[1759768211193,7.38,4660.9,4660.8,20.80548924]
[1759768211532,8.61,4660.9,4660.8,20.80548924]